[Event "*** Titled Tuesday Blitz"]
[Site "Chess.com"]
[Date "2020.11.10"]
[Round "4"]
[White "anon481216"]
[Black "fm_magua"]
[Result "0-1"]
[WhiteElo "2402"]
[BlackElo "2584"]
[TimeControl "180+1"]
[EndTime "10:39:08 PST"]
[Termination "fm_magua won by resignation"]

1. d4 {[%clk 0:03:00.9]} 1... Nf6 {[%clk 0:02:51.4]} 2. c4 {[%clk 0:03:00.7]}
2... g6 {[%clk 0:02:50.6]} 3. Nc3 {[%clk 0:03:00]} 3... Bg7 {[%clk 0:02:51.2]}
4. e4 {[%clk 0:02:59.6]} 4... d6 {[%clk 0:02:51.8]} 5. Be2 {[%clk 0:03:00.2]}
5... O-O {[%clk 0:02:52.2]} 6. Bg5 {[%clk 0:03:00.7]} 6... h6 {[%clk 0:02:51.9]}
7. Be3 {[%clk 0:02:59.7]} 7... e5 {[%clk 0:02:52.1]} 8. d5 {[%clk 0:02:59.6]}
8... a5 {[%clk 0:02:51.6]} 9. Qd2 {[%clk 0:02:51.6]} 9... Kh7 {[%clk 0:02:50.3]}
10. f3 {[%clk 0:02:52]} 10... Nh5 {[%clk 0:02:46.8]} 11. O-O-O {[%clk
0:02:49.7]} 11... Na6 {[%clk 0:02:42.5]} 12. g4 {[%clk 0:02:46.3]} 12... Nf4
{[%clk 0:02:41.7]} 13. Bxf4 {[%clk 0:02:46.3]} 13... exf4 {[%clk 0:02:42.6]} 14.
Qxf4 {[%clk 0:02:45.6]} 14... Nc5 {[%clk 0:02:37.6]} 15. Qd2 {[%clk 0:02:42.6]}
15... a4 {[%clk 0:02:37.7]} 16. h4 {[%clk 0:02:36.3]} 16... a3 {[%clk
0:02:37.1]} 17. b3 {[%clk 0:02:36]} 17... Qf6 {[%clk 0:02:31.7]} 18. Kc2 {[%clk
0:02:34.7]} 18... b5 {[%clk 0:02:27.9]} 19. g5 {[%clk 0:02:31.6]} 19... Qe7
{[%clk 0:02:22.1]} 20. cxb5 {[%clk 0:02:30.3]} 20... h5 {[%clk 0:02:20]} 21. Nh3
{[%clk 0:02:24]} 21... Bxh3 {[%clk 0:02:18.8]} 22. Rxh3 {[%clk 0:02:23.5]} 22...
Nd7 {[%clk 0:02:19.1]} 23. Rhh1 {[%clk 0:02:13.8]} 23... Rfe8 {[%clk 0:02:02.8]}
24. Bd3 {[%clk 0:02:11]} 24... Ne5 {[%clk 0:02:02.1]} 25. Rhf1 {[%clk 0:02:09]}
25... Nxd3 {[%clk 0:02:01.9]} 26. Qxd3 {[%clk 0:02:08.9]} 26... Rab8 {[%clk
0:01:59.6]} 27. Rde1 {[%clk 0:02:07.5]} 27... Bxc3 {[%clk 0:01:58.6]} 28. Kxc3
{[%clk 0:02:04.5]} 28... Qd7 {[%clk 0:01:58.6]} 29. f4 {[%clk 0:01:57.3]} 29...
Rxb5 {[%clk 0:01:58.7]} 30. Kc2 {[%clk 0:01:56.5]} 30... Rc5+ {[%clk 0:01:57]}
31. Kb1 {[%clk 0:01:56.7]} 31... c6 {[%clk 0:01:56.6]} 32. dxc6 {[%clk
0:01:54.4]} 32... Qxc6 {[%clk 0:01:56.4]} 33. f5 {[%clk 0:01:50.9]} 33... Rce5
{[%clk 0:01:48.7]} 34. fxg6+ {[%clk 0:01:49]} 34... fxg6 {[%clk 0:01:48.6]} 35.
Rf6 {[%clk 0:01:47.9]} 35... Rxe4 {[%clk 0:01:42.8]} 36. Ref1 {[%clk 0:01:42.8]}
36... Re1+ {[%clk 0:01:41]} 0-1

[Event "*** Titled Tuesday Blitz"]
[Site "Chess.com"]
[Date "2020.11.10"]
[Round "4"]
[White "Karateloru"]
[Black "Zhuu96"]
[Result "0-1"]
[WhiteElo "2724"]
[BlackElo "2896"]
[TimeControl "180+1"]
[EndTime "10:39:09 PST"]
[Termination "Zhuu96 won by resignation"]

1. Nf3 {[%clk 0:03:00.9]} 1... g6 {[%clk 0:02:55.3]} 2. e3 {[%clk 0:02:58.8]}
2... Bg7 {[%clk 0:02:55.5]} 3. d4 {[%clk 0:02:59.1]} 3... d6 {[%clk 0:02:54.1]}
4. Be2 {[%clk 0:02:57.3]} 4... Nh6 {[%clk 0:02:53]} 5. O-O {[%clk 0:02:57.1]}
5... O-O {[%clk 0:02:53.1]} 6. b3 {[%clk 0:02:57.2]} 6... e5 {[%clk 0:02:48.3]}
7. Bb2 {[%clk 0:02:52.2]} 7... e4 {[%clk 0:02:44.9]} 8. Nfd2 {[%clk 0:02:51.7]}
8... d5 {[%clk 0:02:45.3]} 9. c4 {[%clk 0:02:51.6]} 9... c6 {[%clk 0:02:45.2]}
10. Nc3 {[%clk 0:02:51.8]} 10... Nf5 {[%clk 0:02:45.1]} 11. Rc1 {[%clk
0:02:45.7]} 11... a6 {[%clk 0:02:39.4]} 12. cxd5 {[%clk 0:02:42.3]} 12... cxd5
{[%clk 0:02:39.1]} 13. Ba3 {[%clk 0:02:40.3]} 13... Re8 {[%clk 0:02:38.6]} 14.
Na4 {[%clk 0:02:30.3]} 14... h5 {[%clk 0:02:38.1]} 15. Qc2 {[%clk 0:02:28.3]}
15... Nc6 {[%clk 0:02:37.8]} 16. Nc5 {[%clk 0:02:19]} 16... Bh6 {[%clk
0:02:33.1]} 17. Qc3 {[%clk 0:02:11.3]} 17... Qg5 {[%clk 0:02:28.1]} 18. Rfd1
{[%clk 0:02:06.7]} 18... Nxe3 {[%clk 0:02:10.4]} 19. Qxe3 {[%clk 0:02:02.3]}
19... Qxe3 {[%clk 0:02:10.5]} 20. fxe3 {[%clk 0:02:01.9]} 20... Bxe3+ {[%clk
0:02:11]} 21. Kh1 {[%clk 0:02:00.7]} 21... Nxd4 {[%clk 0:02:10.9]} 22. Bf1
{[%clk 0:01:47]} 22... Bg4 {[%clk 0:02:09.9]} 23. Bb2 {[%clk 0:01:47.1]} 23...
Rac8 {[%clk 0:01:54.6]} 24. b4 {[%clk 0:01:46.8]} 24... Nc6 {[%clk 0:01:43]} 25.
a3 {[%clk 0:01:37.2]} 25... Bxd1 {[%clk 0:01:37.6]} 26. Rxd1 {[%clk 0:01:37]}
26... Bxc5 {[%clk 0:01:37.8]} 27. bxc5 {[%clk 0:01:36.6]} 27... e3 {[%clk
0:01:38.2]} 0-1

[Event "*** Titled Tuesday Blitz"]
[Site "Chess.com"]
[Date "2020.11.10"]
[Round "4"]
[White "ExtremeLearner"]
[Black "Gusarov91"]
[Result "0-1"]
[WhiteElo "2389"]
[BlackElo "2628"]
[TimeControl "180+1"]
[EndTime "10:39:14 PST"]
[Termination "Gusarov91 won by resignation"]

1. d4 {[%clk 0:03:00.9]} 1... Nf6 {[%clk 0:02:59.8]} 2. Nf3 {[%clk 0:02:59.6]}
2... b5 {[%clk 0:02:59.3]} 3. g3 {[%clk 0:02:59.3]} 3... Bb7 {[%clk 0:02:58.8]}
4. Bg2 {[%clk 0:03:00.2]} 4... e6 {[%clk 0:02:59.1]} 5. O-O {[%clk 0:03:00]}
5... c5 {[%clk 0:02:59.7]} 6. Bg5 {[%clk 0:02:58.5]} 6... h6 {[%clk 0:02:58.5]}
7. Bxf6 {[%clk 0:02:54.2]} 7... Qxf6 {[%clk 0:02:58.3]} 8. Nc3 {[%clk
0:02:52.4]} 8... a6 {[%clk 0:02:57.1]} 9. e4 {[%clk 0:02:49.4]} 9... b4 {[%clk
0:02:56.3]} 10. e5 {[%clk 0:02:47.8]} 10... Qd8 {[%clk 0:02:53.5]} 11. Ne2
{[%clk 0:02:43.2]} 11... cxd4 {[%clk 0:02:50]} 12. Nexd4 {[%clk 0:02:41.2]}
12... Nc6 {[%clk 0:02:49.2]} 13. Nxc6 {[%clk 0:02:35.9]} 13... Bxc6 {[%clk
0:02:48.9]} 14. Nd4 {[%clk 0:02:35.4]} 14... Bxg2 {[%clk 0:02:48.8]} 15. Kxg2
{[%clk 0:02:36.3]} 15... Qa5 {[%clk 0:02:47.9]} 16. Re1 {[%clk 0:02:30.4]} 16...
Qd5+ {[%clk 0:02:44.3]} 17. Nf3 {[%clk 0:02:24.5]} 17... Qxd1 {[%clk 0:02:42.9]}
18. Raxd1 {[%clk 0:02:25.4]} 18... Rc8 {[%clk 0:02:43.5]} 19. Re2 {[%clk
0:02:21.1]} 19... Bc5 {[%clk 0:02:43.1]} 20. Nd4 {[%clk 0:02:11.2]} 20... Ke7
{[%clk 0:02:33.5]} 21. Nb3 {[%clk 0:02:07.6]} 21... Rhd8 {[%clk 0:02:33]} 22.
Nxc5 {[%clk 0:02:05.1]} 22... Rxc5 {[%clk 0:02:33.1]} 23. f4 {[%clk 0:02:05.4]}
23... Rdc8 {[%clk 0:02:32.6]} 24. Rdd2 {[%clk 0:02:00.6]} 24... f6 {[%clk
0:02:32.8]} 25. exf6+ {[%clk 0:01:54.6]} 25... gxf6 {[%clk 0:02:33.2]} 26. Kf3
{[%clk 0:01:53.4]} 26... d5 {[%clk 0:02:32.5]} 27. Ke3 {[%clk 0:01:49.8]} 27...
Kd6 {[%clk 0:02:31.4]} 28. Kf3 {[%clk 0:01:41.8]} 28... a5 {[%clk 0:02:31.7]}
29. Kg4 {[%clk 0:01:41.1]} 29... a4 {[%clk 0:02:31.3]} 30. Kh5 {[%clk 0:01:36]}
30... a3 {[%clk 0:02:19.4]} 31. bxa3 {[%clk 0:01:25]} 31... bxa3 {[%clk
0:02:19.2]} 32. h4 {[%clk 0:01:25]} 32... Rg8 {[%clk 0:02:17.6]} 33. Rd3 {[%clk
0:01:20.3]} 33... Rgc8 {[%clk 0:02:10.1]} 34. Rde3 {[%clk 0:01:10.7]} 34... d4+
{[%clk 0:02:10.5]} 0-1

[Event "*** Titled Tuesday Blitz"]
[Site "Chess.com"]
[Date "2020.11.10"]
[Round "4"]
[White "Natalya_Buksa"]
[Black "Ariadna_Atreides"]
[Result "1-0"]
[WhiteElo "2575"]
[BlackElo "2113"]
[TimeControl "180+1"]
[EndTime "10:39:29 PST"]
[Termination "Natalya_Buksa won by resignation"]

1. d4 {[%clk 0:03:00.9]} 1... Nf6 {[%clk 0:02:59]} 2. Nc3 {[%clk 0:03:00]} 2...
d5 {[%clk 0:02:57.7]} 3. Bf4 {[%clk 0:02:59.5]} 3... c6 {[%clk 0:02:48]} 4. e3
{[%clk 0:02:59.7]} 4... Bf5 {[%clk 0:02:45.9]} 5. Nf3 {[%clk 0:03:00]} 5... e6
{[%clk 0:02:45.7]} 6. Ne5 {[%clk 0:03:00.4]} 6... Bd6 {[%clk 0:02:44.6]} 7. g4
{[%clk 0:03:00.6]} 7... Bg6 {[%clk 0:02:40.3]} 8. h4 {[%clk 0:02:59.8]} 8... h6
{[%clk 0:02:16.5]} 9. Nxg6 {[%clk 0:02:59.2]} 9... fxg6 {[%clk 0:02:16.7]} 10.
Bd3 {[%clk 0:02:48.4]} 10... Kf7 {[%clk 0:02:02.9]} 11. Qf3 {[%clk 0:02:40.9]}
11... Rf8 {[%clk 0:01:49.5]} 12. g5 {[%clk 0:02:22.9]} 12... Kg8 {[%clk
0:01:37.3]} 13. gxf6 {[%clk 0:02:15.5]} 13... Rxf6 {[%clk 0:01:37.1]} 14. Qg3
{[%clk 0:02:15.5]} 14... Bxf4 {[%clk 0:01:35.4]} 15. exf4 {[%clk 0:02:15.9]}
15... Qe8 {[%clk 0:01:34.5]} 16. O-O-O {[%clk 0:02:15.3]} 16... Na6 {[%clk
0:01:33.9]} 17. h5 {[%clk 0:02:14.4]} 17... gxh5 {[%clk 0:01:30.8]} 18. Rdg1
{[%clk 0:02:14.2]} 18... Qf8 {[%clk 0:01:26.9]} 19. Rxh5 {[%clk 0:02:12.5]}
19... Nb4 {[%clk 0:01:25.1]} 20. a3 {[%clk 0:02:07]} 20... Nxd3+ {[%clk
0:01:24.7]} 21. Qxd3 {[%clk 0:02:07.1]} 21... Rxf4 {[%clk 0:01:16.1]} 22. Rxh6
{[%clk 0:02:06.5]} 22... Rxf2 {[%clk 0:01:10.6]} 23. Qh7+ {[%clk 0:02:03.4]}
23... Kf7 {[%clk 0:01:10.5]} 24. Qg6+ {[%clk 0:02:03.9]} 24... Kg8 {[%clk
0:01:07.6]} 25. Qxe6+ {[%clk 0:02:00.9]} 25... Qf7 {[%clk 0:00:53.8]} 26. Qxf7+
{[%clk 0:02:00.6]} 26... Kxf7 {[%clk 0:00:54.2]} 27. Rd6 {[%clk 0:01:58.2]}
27... Re8 {[%clk 0:00:49.7]} 28. Rd7+ {[%clk 0:01:57.9]} 1-0

[Event "*** Titled Tuesday Blitz"]
[Site "Chess.com"]
[Date "2020.11.10"]
[Round "4"]
[White "Campelov"]
[Black "stolencandy13"]
[Result "0-1"]
[WhiteElo "2145"]
[BlackElo "2376"]
[TimeControl "180+1"]
[EndTime "10:39:29 PST"]
[Termination "stolencandy13 won by resignation"]

1. e4 {[%clk 0:02:26]} 1... c6 {[%clk 0:02:45]} 2. d4 {[%clk 0:02:24.7]} 2... d5
{[%clk 0:02:45.9]} 3. Nd2 {[%clk 0:02:25.1]} 3... dxe4 {[%clk 0:02:46]} 4. Nxe4
{[%clk 0:02:26]} 4... Bf5 {[%clk 0:02:46.5]} 5. Ng3 {[%clk 0:02:25.9]} 5... Bg6
{[%clk 0:02:47.4]} 6. h4 {[%clk 0:02:26.6]} 6... h6 {[%clk 0:02:47.6]} 7. Nf3
{[%clk 0:02:27.5]} 7... Nd7 {[%clk 0:02:47.6]} 8. h5 {[%clk 0:02:27.7]} 8... Bh7
{[%clk 0:02:48]} 9. Bd3 {[%clk 0:02:28.6]} 9... Bxd3 {[%clk 0:02:48.6]} 10. Qxd3
{[%clk 0:02:29.5]} 10... e6 {[%clk 0:02:49.5]} 11. Bd2 {[%clk 0:02:28.1]} 11...
Ngf6 {[%clk 0:02:49.7]} 12. O-O-O {[%clk 0:02:28.2]} 12... Be7 {[%clk
0:02:50.6]} 13. Kb1 {[%clk 0:02:26.8]} 13... Qb6 {[%clk 0:02:49]} 14. Ne4 {[%clk
0:02:26.6]} 14... Nxe4 {[%clk 0:02:47.7]} 15. Qxe4 {[%clk 0:02:26.9]} 15... Nf6
{[%clk 0:02:48.3]} 16. Qe2 {[%clk 0:02:26.8]} 16... Rc8 {[%clk 0:02:46.4]} 17.
c4 {[%clk 0:02:26.1]} 17... O-O {[%clk 0:02:44.5]} 18. g4 {[%clk 0:02:25]} 18...
c5 {[%clk 0:02:13.1]} 19. d5 {[%clk 0:01:54.7]} 19... Nxg4 {[%clk 0:02:05.4]}
20. Rdg1 {[%clk 0:01:51.5]} 20... f5 {[%clk 0:02:05.3]} 21. dxe6 {[%clk
0:01:51]} 21... Bf6 {[%clk 0:02:03.9]} 22. Bc1 {[%clk 0:01:46.4]} 22... Rfe8
{[%clk 0:02:02.7]} 23. Re1 {[%clk 0:01:38.3]} 23... Rc6 {[%clk 0:01:57.3]} 24.
Qd3 {[%clk 0:01:33.8]} 24... Nxf2 {[%clk 0:01:45.2]} 25. Qxf5 {[%clk 0:01:32.9]}
25... Nxh1 {[%clk 0:01:45.1]} 26. Rxh1 {[%clk 0:01:32.8]} 26... Rcxe6 {[%clk
0:01:44.2]} 27. Rg1 {[%clk 0:01:32.1]} 27... Re2 {[%clk 0:01:40.9]} 28. b3
{[%clk 0:01:23.5]} 28... Qa6 {[%clk 0:01:36.3]} 29. a3 {[%clk 0:01:15.6]} 29...
Qb6 {[%clk 0:01:33.3]} 0-1

[Event "*** Titled Tuesday Blitz"]
[Site "Chess.com"]
[Date "2020.11.10"]
[Round "4"]
[White "biostatistician"]
[Black "Oneofmyturns"]
[Result "0-1"]
[WhiteElo "2526"]
[BlackElo "2730"]
[TimeControl "180+1"]
[EndTime "10:39:30 PST"]
[Termination "Oneofmyturns won by resignation"]

1. d4 {[%clk 0:02:59.6]} 1... Nf6 {[%clk 0:02:55.9]} 2. Nf3 {[%clk 0:03:00.5]}
2... d5 {[%clk 0:02:54.4]} 3. c4 {[%clk 0:03:00.7]} 3... e6 {[%clk 0:02:54.8]}
4. Bg5 {[%clk 0:03:00.7]} 4... Be7 {[%clk 0:02:54.9]} 5. e3 {[%clk 0:03:00.7]}
5... h6 {[%clk 0:02:55.4]} 6. Bh4 {[%clk 0:03:00.1]} 6... O-O {[%clk 0:02:55.6]}
7. Nc3 {[%clk 0:03:00.8]} 7... c6 {[%clk 0:02:48.3]} 8. Bd3 {[%clk 0:03:00.2]}
8... Nbd7 {[%clk 0:02:48.5]} 9. O-O {[%clk 0:03:00.2]} 9... b6 {[%clk 0:02:49]}
10. Qe2 {[%clk 0:02:59.9]} 10... Bb7 {[%clk 0:02:49.4]} 11. Rad1 {[%clk
0:02:59.8]} 11... Rc8 {[%clk 0:02:50.1]} 12. cxd5 {[%clk 0:02:57.6]} 12... Nxd5
{[%clk 0:02:48.8]} 13. Bg3 {[%clk 0:02:57.1]} 13... Qe8 {[%clk 0:02:35]} 14. Ba6
{[%clk 0:02:54.2]} 14... Bxa6 {[%clk 0:02:29.9]} 15. Qxa6 {[%clk 0:02:55.1]}
15... Nxc3 {[%clk 0:02:29.6]} 16. bxc3 {[%clk 0:02:54.9]} 16... Ra8 {[%clk
0:02:30.5]} 17. a4 {[%clk 0:02:49.5]} 17... Qc8 {[%clk 0:02:31]} 18. Qxc8 {[%clk
0:02:41.8]} 18... Rfxc8 {[%clk 0:02:31.9]} 19. Rb1 {[%clk 0:02:41.7]} 19... c5
{[%clk 0:02:31.2]} 20. Rfc1 {[%clk 0:02:40.7]} 20... Kf8 {[%clk 0:02:29.3]} 21.
Kf1 {[%clk 0:02:40.9]} 21... f6 {[%clk 0:02:26.9]} 22. Ke2 {[%clk 0:02:40.2]}
22... Rc6 {[%clk 0:02:21.2]} 23. Kd2 {[%clk 0:02:24.5]} 23... Kf7 {[%clk
0:02:21.3]} 24. Rb5 {[%clk 0:02:22.3]} 24... Rac8 {[%clk 0:02:20.6]} 25. a5
{[%clk 0:02:21.5]} 25... cxd4 {[%clk 0:02:17.8]} 26. Nxd4 {[%clk 0:02:19.4]}
26... Rc5 {[%clk 0:02:15.9]} 27. axb6 {[%clk 0:02:18.2]} 27... axb6 {[%clk
0:02:11.4]} 28. f3 {[%clk 0:02:10.1]} 28... e5 {[%clk 0:02:05.2]} 29. Rxc5
{[%clk 0:02:09.8]} 29... Nxc5 {[%clk 0:02:05.4]} 30. Nf5 {[%clk 0:02:05.2]}
30... Nb3+ {[%clk 0:02:03.6]} 31. Kd1 {[%clk 0:01:59.7]} 31... Nxc1 {[%clk
0:02:02.3]} 32. Kxc1 {[%clk 0:02:00.4]} 32... Rxc3+ {[%clk 0:02:02.8]} 33. Kd2
{[%clk 0:02:00.5]} 33... Bb4 {[%clk 0:02:01]} 34. Nd6+ {[%clk 0:01:55.2]} 34...
Ke6 {[%clk 0:01:55.7]} 35. Ne4 {[%clk 0:01:53.4]} 35... Ra3+ {[%clk 0:01:55.6]}
36. Kc2 {[%clk 0:01:52.1]} 36... Rxe3 {[%clk 0:01:53.1]} 37. Bf2 {[%clk
0:01:48]} 37... Re2+ {[%clk 0:01:53.5]} 38. Kd3 {[%clk 0:01:47.7]} 38... Ra2
{[%clk 0:01:51.6]} 39. Kc4 {[%clk 0:01:46.6]} 39... f5 {[%clk 0:01:43.8]} 40.
Kxb4 {[%clk 0:01:45.9]} 40... fxe4 {[%clk 0:01:43.9]} 41. Bxb6 {[%clk
0:01:46.5]} 41... Rxg2 {[%clk 0:01:43.9]} 42. fxe4 {[%clk 0:01:46.4]} 42... Rxh2
{[%clk 0:01:41.3]} 0-1

[Event "*** Titled Tuesday Blitz"]
[Site "Chess.com"]
[Date "2020.11.10"]
[Round "4"]
[White "rasmussvane"]
[Black "KaterinaMiroshnik"]
[Result "1-0"]
[WhiteElo "2881"]
[BlackElo "2564"]
[TimeControl "180+1"]
[EndTime "10:39:31 PST"]
[Termination "rasmussvane won by resignation"]

1. Nf3 {[%clk 0:03:00.9]} 1... Nf6 {[%clk 0:02:57.3]} 2. g3 {[%clk 0:03:00.4]}
2... e6 {[%clk 0:02:57.4]} 3. Bg2 {[%clk 0:03:00.5]} 3... d5 {[%clk 0:02:56.8]}
4. O-O {[%clk 0:03:00.1]} 4... Be7 {[%clk 0:02:57.7]} 5. c4 {[%clk 0:02:59.5]}
5... O-O {[%clk 0:02:58.6]} 6. b3 {[%clk 0:02:59.6]} 6... b6 {[%clk 0:02:55]} 7.
d4 {[%clk 0:02:57.4]} 7... Bb7 {[%clk 0:02:55.4]} 8. Nc3 {[%clk 0:02:57.4]} 8...
Nbd7 {[%clk 0:02:54.6]} 9. Bb2 {[%clk 0:02:57.5]} 9... c5 {[%clk 0:02:54.1]} 10.
Ne1 {[%clk 0:02:57.9]} 10... cxd4 {[%clk 0:02:53]} 11. Qxd4 {[%clk 0:02:58.8]}
11... Nc5 {[%clk 0:02:41.3]} 12. cxd5 {[%clk 0:02:53.7]} 12... exd5 {[%clk
0:02:37.9]} 13. Rd1 {[%clk 0:02:52.6]} 13... Ne6 {[%clk 0:02:33.7]} 14. Qd3
{[%clk 0:02:44]} 14... Nc5 {[%clk 0:02:14.7]} 15. Qf5 {[%clk 0:02:38.6]} 15...
Bc8 {[%clk 0:02:06.5]} 16. Qe5 {[%clk 0:02:27.1]} 16... Be6 {[%clk 0:01:31.1]}
17. Nxd5 {[%clk 0:02:26]} 17... Ncd7 {[%clk 0:01:13.3]} 18. Qd4 {[%clk
0:02:04.7]} 18... Rc8 {[%clk 0:01:05]} 19. Nd3 {[%clk 0:01:52.7]} 19... Nc5
{[%clk 0:00:45.6]} 20. Nxc5 {[%clk 0:01:47.6]} 20... Rxc5 {[%clk 0:00:44.8]} 21.
Nxe7+ {[%clk 0:01:46.3]} 21... Qxe7 {[%clk 0:00:41.1]} 22. Ba3 {[%clk
0:01:46.5]} 1-0

[Event "*** Titled Tuesday Blitz"]
[Site "Chess.com"]
[Date "2020.11.10"]
[Round "4"]
[White "A-Fier"]
[Black "szachuspl"]
[Result "1-0"]
[WhiteElo "2767"]
[BlackElo "2538"]
[TimeControl "180+1"]
[EndTime "10:39:31 PST"]
[Termination "A-Fier won by resignation"]

1. b3 {[%clk 0:03:00.9]} 1... e5 {[%clk 0:02:59]} 2. Bb2 {[%clk 0:03:01.8]} 2...
Nc6 {[%clk 0:02:58.8]} 3. e3 {[%clk 0:03:02.3]} 3... Nf6 {[%clk 0:02:58.1]} 4.
Bb5 {[%clk 0:03:02.9]} 4... Bd6 {[%clk 0:02:58.2]} 5. Na3 {[%clk 0:03:02.3]}
5... a6 {[%clk 0:02:57.4]} 6. Be2 {[%clk 0:03:02.3]} 6... b5 {[%clk 0:02:56.9]}
7. c4 {[%clk 0:03:01.9]} 7... b4 {[%clk 0:02:46.3]} 8. Nc2 {[%clk 0:03:02.1]}
8... O-O {[%clk 0:02:46.6]} 9. d3 {[%clk 0:02:57.3]} 9... a5 {[%clk 0:02:46.4]}
10. Nf3 {[%clk 0:02:57.4]} 10... Bb7 {[%clk 0:02:40.7]} 11. O-O {[%clk
0:02:56.9]} 11... Re8 {[%clk 0:02:40.6]} 12. e4 {[%clk 0:02:57.3]} 12... Nb8
{[%clk 0:02:36]} 13. Ne3 {[%clk 0:02:57.5]} 13... Na6 {[%clk 0:02:32.8]} 14. Nh4
{[%clk 0:02:51.5]} 14... Nc5 {[%clk 0:02:30.8]} 15. Nhf5 {[%clk 0:02:51.1]}
15... g6 {[%clk 0:02:30.6]} 16. Nxd6 {[%clk 0:02:50.4]} 16... cxd6 {[%clk
0:02:31.5]} 17. Nd5 {[%clk 0:02:50.2]} 17... Bxd5 {[%clk 0:02:18.8]} 18. exd5
{[%clk 0:02:49.8]} 18... a4 {[%clk 0:01:59.3]} 19. Bf3 {[%clk 0:02:49.6]} 19...
axb3 {[%clk 0:01:53.2]} 20. axb3 {[%clk 0:02:47.7]} 20... Rxa1 {[%clk
0:01:52.9]} 21. Bxa1 {[%clk 0:02:48.6]} 21... Qa8 {[%clk 0:01:52.5]} 22. d4
{[%clk 0:02:48.8]} 22... exd4 {[%clk 0:01:48.5]} 23. Qxd4 {[%clk 0:02:48.9]}
23... Re5 {[%clk 0:01:17.2]} 24. Qf4 {[%clk 0:02:41.8]} 24... Rf5 {[%clk
0:01:13.5]} 25. Qxd6 {[%clk 0:02:41.7]} 25... Nce4 {[%clk 0:00:54.9]} 26. Qxb4
{[%clk 0:02:40.5]} 26... Ng5 {[%clk 0:00:49.1]} 27. Be2 {[%clk 0:02:25.8]} 27...
h5 {[%clk 0:00:44.4]} 28. Bd3 {[%clk 0:02:22.3]} 28... Nge4 {[%clk 0:00:37.3]}
29. Bxf6 {[%clk 0:02:18.9]} 29... Nxf6 {[%clk 0:00:36.8]} 30. Bxf5 {[%clk
0:02:19.2]} 30... gxf5 {[%clk 0:00:37.7]} 31. Qe7 {[%clk 0:02:18.9]} 31... Kg7
{[%clk 0:00:37]} 32. Qe5 {[%clk 0:02:19]} 32... Qa2 {[%clk 0:00:36.7]} 33. Qxf5
{[%clk 0:02:16]} 1-0

[Event "*** Titled Tuesday Blitz"]
[Site "Chess.com"]
[Date "2020.11.10"]
[Round "4"]
[White "SerGo055"]
[Black "Chess2019Player"]
[Result "1-0"]
[WhiteElo "2444"]
[BlackElo "2252"]
[TimeControl "180+1"]
[EndTime "10:39:31 PST"]
[Termination "SerGo055 won by resignation"]

1. d4 {[%clk 0:03:00.9]} 1... Nf6 {[%clk 0:02:59.1]} 2. Nf3 {[%clk 0:03:00.8]}
2... c5 {[%clk 0:02:57.7]} 3. c3 {[%clk 0:03:00.8]} 3... cxd4 {[%clk 0:02:55]}
4. cxd4 {[%clk 0:03:01.7]} 4... d5 {[%clk 0:02:55.5]} 5. Nc3 {[%clk 0:03:02.1]}
5... Nc6 {[%clk 0:02:54.3]} 6. Bf4 {[%clk 0:03:02]} 6... a6 {[%clk 0:02:53]} 7.
e3 {[%clk 0:03:02]} 7... Bg4 {[%clk 0:02:44.8]} 8. Be2 {[%clk 0:02:59.8]} 8...
e6 {[%clk 0:02:44.8]} 9. O-O {[%clk 0:02:59.4]} 9... Bd6 {[%clk 0:02:43.2]} 10.
Bg3 {[%clk 0:02:59.8]} 10... O-O {[%clk 0:02:42.5]} 11. Na4 {[%clk 0:02:56.5]}
11... Rc8 {[%clk 0:02:39.1]} 12. Rc1 {[%clk 0:02:55.7]} 12... Bxg3 {[%clk
0:02:29.3]} 13. hxg3 {[%clk 0:02:54.8]} 13... Ne4 {[%clk 0:02:30.2]} 14. Nc5
{[%clk 0:02:51.6]} 14... Nxc5 {[%clk 0:02:27.8]} 15. Rxc5 {[%clk 0:02:51.6]}
15... Na5 {[%clk 0:02:19.5]} 16. b4 {[%clk 0:02:40.5]} 16... Rxc5 {[%clk
0:02:14]} 17. bxc5 {[%clk 0:02:40]} 17... Bxf3 {[%clk 0:02:05.3]} 18. gxf3
{[%clk 0:02:39.3]} 18... b5 {[%clk 0:01:41.9]} 19. a4 {[%clk 0:02:36.8]} 19...
Nc4 {[%clk 0:01:39.6]} 20. axb5 {[%clk 0:02:36.2]} 20... axb5 {[%clk 0:01:39.2]}
21. Qa1 {[%clk 0:02:29]} 21... Qa8 {[%clk 0:01:37.7]} 22. Qxa8 {[%clk
0:02:26.8]} 22... Rxa8 {[%clk 0:01:38.6]} 23. Rb1 {[%clk 0:02:26.7]} 23... Rb8
{[%clk 0:01:12]} 24. Bxc4 {[%clk 0:01:29.3]} 24... dxc4 {[%clk 0:01:12.9]} 25.
c6 {[%clk 0:01:29.6]} 25... c3 {[%clk 0:01:12.4]} 26. c7 {[%clk 0:01:29.7]}
26... Rc8 {[%clk 0:01:12.1]} 27. Rxb5 {[%clk 0:01:30.1]} 27... c2 {[%clk
0:01:12.3]} 28. Rc5 {[%clk 0:01:29.8]} 1-0

[Event "*** Titled Tuesday Blitz"]
[Site "Chess.com"]
[Date "2020.11.10"]
[Round "4"]
[White "PIwan"]
[Black "AlexeiShirov"]
[Result "0-1"]
[WhiteElo "2539"]
[BlackElo "2790"]
[TimeControl "180+1"]
[EndTime "10:39:38 PST"]
[Termination "AlexeiShirov won by resignation"]

1. c4 {[%clk 0:03:00.9]} 1... c6 {[%clk 0:02:59.4]} 2. e4 {[%clk 0:03:00.6]}
2... d5 {[%clk 0:02:58.9]} 3. exd5 {[%clk 0:03:01.5]} 3... cxd5 {[%clk
0:02:58.7]} 4. cxd5 {[%clk 0:03:02.4]} 4... Nf6 {[%clk 0:02:57.3]} 5. Nc3 {[%clk
0:03:02.9]} 5... Nxd5 {[%clk 0:02:53.9]} 6. Nf3 {[%clk 0:03:03.4]} 6... Nc6
{[%clk 0:02:52.7]} 7. d4 {[%clk 0:03:02.3]} 7... Bg4 {[%clk 0:02:51.1]} 8. Qb3
{[%clk 0:02:59.4]} 8... Bxf3 {[%clk 0:02:50.5]} 9. gxf3 {[%clk 0:03:00.3]} 9...
Nb6 {[%clk 0:02:48]} 10. d5 {[%clk 0:02:58.8]} 10... Nd4 {[%clk 0:02:47.6]} 11.
Bb5+ {[%clk 0:02:56.4]} 11... Nd7 {[%clk 0:02:46.1]} 12. Qa4 {[%clk 0:02:33.2]}
12... Nxb5 {[%clk 0:02:30.8]} 13. Qxb5 {[%clk 0:02:32.1]} 13... g6 {[%clk
0:02:29.2]} 14. O-O {[%clk 0:02:03.7]} 14... Bg7 {[%clk 0:02:28.5]} 15. Bg5
{[%clk 0:01:48.1]} 15... h6 {[%clk 0:02:26.7]} 16. Bxe7 {[%clk 0:01:09]} 16...
Qxe7 {[%clk 0:02:05.5]} 17. Rae1 {[%clk 0:01:07]} 17... Be5 {[%clk 0:02:03.6]}
18. d6 {[%clk 0:00:41.9]} 18... Qg5+ {[%clk 0:02:01.4]} 19. Kh1 {[%clk
0:00:40.1]} 19... Qf4 {[%clk 0:01:56]} 0-1